bitfinex/quotes_ETHUSD_20220105
["timestamp","ask_amount","ask_price","bid_price","bid_amount"]
[1641405427928,0.6426,3782.9,3782.8,0.15502556]
[1641405428132,7.17676405,3782.8,3782.4,1.34902218]
[1641405428331,11.875,3782.5,3782.4,2.218e-05]
[1641405428528,5.403,3782.5,3782.2,1.79862354]
[1641405428728,5.403,3782.5,3781.0,4.4934181]
[1641405428729,7.16223855,3782.3,3781.0,4.4934181]
[1641405428930,0.6611572,3782.1,3781.0,4.4934181]
[1641405429133,0.378,3782.0,3780.7,3.59474082]
[1641405429330,0.378,3782.0,3781.3,0.904516]
[1641405429531,1.03916,3782.0,3781.3,0.904516]
[1641405430533,0.378,3782.0,3781.7,0.8090945]
[1641405430779,0.378,3782.0,3781.9,0.88180508]
[1641405431184,0.378,3782.0,3781.9,0.8869209]
[1641405432184,0.6426,3782.0,3781.9,0.8869209]
[1641405434826,0.6426,3782.0,3781.9,0.88786054]
[1641405440383,5.6426,3782.0,3781.9,0.88786054]
[1641405440987,5.6426,3782.0,3781.9,0.00605546]
[1641405442422,8.28449682,3782.0,3781.9,0.00605546]
[1641405442624,8.26582201,3782.0,3781.9,0.00605546]
[1641405443226,5.6426,3782.0,3781.9,0.00605546]
[1641405443425,8.3133803,3782.0,3781.9,0.00605546]
[1641405443624,5.6426,3782.0,3781.9,0.00605546]
[1641405444225,8.25846196,3782.0,3781.9,0.00605546]
[1641405444424,5.6426,3782.0,3781.9,0.00605546]
[1641405448681,5.2646,3782.0,3781.9,0.00605546]
[1641405449182,5.2646,3782.0,3781.9,0.15599913]
[1641405453033,5.2646,3782.0,3781.9,0.00605546]
[1641405454179,5.2646,3782.0,3781.9,0.15601411]
[1641405454379,6.08152663,3782.0,3781.9,0.15601411]
[1641405455781,5.2646,3782.0,3781.9,0.15601411]
[1641405455983,5.2135409,3782.0,3781.9,0.15601411]
[1641405456786,5.5915409,3782.0,3781.9,0.15601411]
[1641405457028,6.2526709,3782.0,3781.9,0.15601411]
[1641405457734,7.91039965,3782.0,3781.9,0.15601411]
[1641405458133,7.91039965,3782.0,3781.2,1.33798651]
[1641405458134,7.15,3781.9,3781.2,1.33798651]
[1641405458337,1.3225592,3781.7,3781.2,1.33798651]
[1641405458533,1.3225592,3781.7,3781.3,0.00341054]
[1641405458534,0.66128,3781.5,3781.3,0.00341054]
[1641405458734,7.528,3781.4,3781.3,0.00341054]
[1641405458932,8.23425446,3781.4,3781.3,0.00341054]
[1641405459134,9.23425446,3781.4,3781.3,0.00341054]
[1641405459334,9.53425446,3781.4,3780.8,0.00625265]
[1641405459533,1.3226801,3781.2,3780.8,0.00625265]
[1641405459734,1.03931,3781.1,3780.8,0.00625265]
[1641405460132,2.03931,3781.1,3780.8,0.00625265]
[1641405460784,2.59137097,3781.0,3780.8,0.00625265]
[1641405460984,4.228,3780.9,3780.8,0.00625265]
[1641405461181,1.03937,3780.9,3780.8,0.00625265]
[1641405461384,3.74138446,3780.9,3780.8,0.00625265]
[1641405461580,3.74138446,3780.9,3780.3,0.00909477]
[1641405461783,3.74138446,3780.9,3780.1,0.01023162]
[1641405461784,0.6613432,3780.7,3780.1,0.01023162]
[1641405461983,1.70069,3780.6,3780.1,0.01023162]
[1641405462183,0.66135,3780.4,3780.1,0.01023162]
[1641405462985,1.3226932,3780.4,3780.1,0.01023162]
[1641405464729,4.35897314,3780.3,3780.1,0.01023162]
[1641405464926,1.70079,3780.3,3780.1,0.01023162]
[1641405465329,5.9635409,3780.2,3780.1,0.01023162]
[1641405465534,9.29972404,3780.2,3780.1,0.01023162]
[1641405465733,9.29972404,3780.2,3778.9,10.92750043]
[1641405465734,7.15,3780.0,3778.9,6.17]
[1641405465935,0.66166,3779.5,3778.7,0.70876608]
[1641405466142,1.3232716,3779.3,3779.0,0.00625266]
[1641405466333,0.378,3779.2,3779.0,0.00625266]
[1641405466937,1.70132,3779.2,3779.0,0.00625266]
[1641405467237,2.3629558,3779.2,3779.1,0.0011676]
[1641405467435,1.7012958,3779.2,3779.1,0.0011676]
[1641405467634,1.7012958,3779.2,3779.1,0.00685183]
[1641405468583,4.58682373,3779.2,3779.1,0.00685183]
[1641405468778,4.66388889,3779.2,3779.1,0.00685183]
[1641405468978,4.4933681,3779.2,3779.1,0.00685183]
[1641405469180,1.9148367,3779.2,3779.1,0.00685183]
[1641405469381,6.3148367,3779.2,3779.1,0.00685183]
[1641405469789,1.9148367,3779.2,3779.1,0.00685183]
[1641405470795,6.9148367,3779.2,3779.1,0.00685183]
[1641405470989,9.55800958,3779.2,3779.1,0.00685183]
[1641405471790,9.53301337,3779.2,3779.1,0.00685183]
[1641405472029,6.9148367,3779.2,3779.1,0.00685183]
[1641405472633,5.5915409,3779.2,3779.1,0.00685183]
[1641405473535,5.5915409,3779.2,3779.1,0.89133611]
[1641405474138,0.0008,3779.5,3779.2,7.15]
[1641405474341,0.0008,3779.5,3779.3,2.66280898]
[1641405474640,0.0008,3779.5,3779.4,7.15397896]
[1641405475042,0.0008,3779.5,3779.4,8.19552952]
[1641405475243,0.378,3780.8,3779.4,8.19552952]
[1641405475443,0.378,3780.8,3780.0,0.66128]
[1641405475780,0.00341054,3780.7,3779.9,1.32256]
[1641405476187,0.00284212,3780.6,3780.5,0.78318869]
[1641405476983,0.28084212,3780.8,3780.5,0.78318869]
[1641405477887,0.28084212,3780.8,3780.6,0.0009868]
[1641405480129,1.54900975,3780.8,3780.6,0.0009868]
[1641405480328,3.00063231,3780.7,3780.6,0.0009868]
[1641405480934,3.37863231,3780.7,3780.6,0.0009868]
[1641405481131,6.02863231,3780.7,3780.6,0.0009868]
[1641405481732,3.37863231,3780.7,3780.6,0.0009868]
[1641405482133,4.64679994,3780.7,3780.6,0.0009868]
[1641405482331,5.64679994,3780.7,3780.6,0.0009868]
[1641405482935,4.37863231,3780.7,3780.6,0.0009868]
[1641405483780,7.15,3780.6,3780.1,0.10101842]
[1641405483983,0.6613821,3780.4,3780.1,0.10101842]
[1641405484180,0.378,3780.3,3780.2,0.00227369]
[1641405485781,1.03942,3780.3,3780.1,0.00284212]
[1641405485987,1.7008367,3780.3,3780.0,0.46805471]
[1641405486387,1.7008367,3780.3,3779.8,0.66141]
[1641405486787,1.7008367,3780.3,3779.9,0.00113685]
[1641405487431,1.7008367,3780.3,3780.0,0.82976299]
[1641405488032,1.7008367,3780.3,3779.9,0.00113685]
[1641405488434,1.3228537,3780.2,3779.9,0.00113685]
[1641405488735,1.3228537,3780.2,3780.1,0.00093546]
[1641405489333,2.3622573,3780.3,3780.1,0.00093546]
[1641405489534,1.7008373,3780.3,3780.1,0.00093546]
[1641405490886,2.3622473,3780.3,3780.1,0.00093546]
[1641405493282,3.04820668,3780.3,3780.1,0.00093546]
[1641405494286,2.3622473,3780.3,3780.1,0.00093546]
[1641405494929,3.95,3780.2,3779.9,0.22690661]
[1641405495130,2.3622473,3780.3,3779.9,0.22690661]
[1641405497039,0.66143,3780.2,3779.9,0.22690661]
[1641405498037,1.3228445,3780.2,3779.9,0.22690661]
[1641405498975,1.3228445,3780.2,3779.9,0.00113685]
[1641405498976,0.3,3780.1,3779.9,0.00113685]
[1641405499282,0.66146,3780.0,3779.8,0.00170527]
[1641405499778,0.3,3779.9,3779.8,0.00170527]
[1641405499979,0.6614538,3780.0,3779.8,0.00170527]
[1641405500181,0.378,3780.3,3779.8,0.00170527]
[1641405500780,0.6613507,3780.2,3779.8,0.00170527]
[1641405501183,0.6613507,3780.2,3779.9,0.66129]
[1641405502737,0.6113507,3780.2,3779.9,0.66129]
[1641405504136,0.378,3780.1,3779.9,0.66129]
[1641405504539,3.37900126,3780.1,3780.0,0.15005006]
[1641405504939,3.37900126,3780.1,3779.9,0.66129]
[1641405504940,0.378,3780.1,3779.9,0.66129]
[1641405505548,0.378,3780.1,3780.0,0.15004245]
[1641405505794,7.15,3780.0,3779.4,1.35033184]
[1641405505999,5.85113,3779.7,3779.4,1.35033184]
[1641405506198,7.15,3779.5,3779.0,1.35033184]
[1641405506398,1.66392914,3779.2,3779.0,1.35033184]
[1641405506599,5.428,3779.1,3779.0,1.35033184]
[1641405506798,0.378,3779.1,3779.0,1.35033184]
[1641405507000,0.378,3779.1,3779.0,1.35317396]
[1641405507200,0.378,3779.1,3779.0,0.00284212]
[1641405507599,0.66171,3778.8,3778.4,0.00625266]
[1641405507802,1.0397099,3778.7,3778.4,0.00625266]
[1641405507999,1.0397099,3778.7,3778.4,0.74315407]
[1641405508201,1.0397099,3778.7,3778.4,0.00625266]
[1641405508400,1.0397099,3778.7,3778.5,0.00568423]
[1641405508599,1.0397099,3778.7,3778.4,0.00625266]
[1641405508600,0.66171,3778.6,3778.4,0.00625266]
[1641405508800,0.378,3778.5,3778.4,0.00625266]
[1641405509833,0.678,3778.5,3778.4,0.00728253]
[1641405510842,4.31857675,3778.5,3778.4,0.00728253]
[1641405511038,2.61857675,3778.5,3778.4,0.00728253]
[1641405511339,3.45338373,3778.5,3778.4,0.00728253]
[1641405511940,7.15,3778.4,3778.3,5.3555445]
[1641405512141,13.253,3778.4,3778.3,3.63247603]
[1641405512341,7.15,3778.2,3777.5,1.35033184]
[1641405512541,0.66208,3777.4,3777.2,1.80044246]
[1641405512742,0.378,3777.3,3777.2,1.80044246]
[1641405513140,0.378,3777.3,3777.2,1.80726354]
[1641405513410,16.81071649,3777.3,3776.9,3.26343207]
[1641405513604,16.81071649,3777.3,3776.1,5.15014158]
[1641405513605,4.725,3777.0,3776.6,1.79633433]
[1641405513796,4.725,3776.8,3776.6,1.79633433]
[1641405513995,7.528,3776.7,3776.3,2.67589435]
[1641405514195,7.528,3776.7,3776.1,3.46463561]
[1641405514196,7.8122168,3776.6,3776.1,3.46463561]
[1641405514398,7.528,3776.5,3776.4,0.00454739]
[1641405514597,24.4164,3776.5,3776.4,0.00454739]
[1641405514795,29.1414,3776.5,3775.7,0.00852635]
[1641405514997,0.66228,3776.1,3775.2,1.33577847]
[1641405515195,0.378,3776.0,3775.4,0.66222]
[1641405515405,0.378,3776.0,3775.3,0.01080004]
[1641405515598,0.378,3776.0,3775.7,0.91373039]
[1641405516000,0.378,3776.0,3775.8,0.00795793]
[1641405516703,0.0008,3776.9,3775.8,0.00795793]
[1641405516901,0.0008,3776.9,3776.7,1.05646208]
[1641405517149,0.378,3777.1,3776.8,0.83720591]
[1641405517353,0.378,3777.1,3776.8,0.00227369]
[1641405517549,0.378,3777.1,3776.9,0.00170527]
[1641405517749,0.378,3777.1,3776.6,0.00341054]
[1641405517953,0.378,3777.1,3776.7,0.00284212]
[1641405518150,0.378,3777.1,3776.5,1.27667212]
[1641405518151,5.45,3777.0,3776.5,1.27667212]
[1641405518350,0.00170527,3777.0,3776.5,2.2845784]
[1641405518553,0.378,3777.1,3776.9,0.64879364]
[1641405518751,0.378,3777.1,3776.9,1.31077364]
[1641405518951,0.00170527,3777.0,3776.9,1.31077364]
[1641405519451,3.05230166,3777.0,3776.0,1.98581]
[1641405519652,15.42,3776.8,3775.2,3.9832]
[1641405519853,0.378,3776.7,3776.1,0.00341054]
[1641405520053,0.378,3776.6,3776.1,0.00341054]
[1641405520255,0.378,3776.5,3776.1,0.00341054]
[1641405520557,7.15,3776.4,3775.9,0.5667255]
[1641405520782,0.378,3776.3,3775.5,1.32429]
[1641405520986,1.67913685,3776.3,3775.5,1.32429]
[1641405521188,0.67913685,3776.3,3775.6,0.00284211]
[1641405521388,0.37913685,3776.3,3775.7,0.66218]
[1641405521787,0.37913685,3776.3,3775.8,0.00170527]
[1641405521987,0.37913685,3776.3,3776.0,0.80216923]
[1641405522789,0.37913685,3776.3,3775.8,0.00170527]
[1641405522995,0.66217,3776.2,3775.8,0.00170527]
[1641405523194,0.378,3776.1,3775.6,0.00284211]
[1641405523388,0.378,3776.0,3775.1,0.00568423]
[1641405523589,0.378,3775.9,3775.1,0.00568423]
[1641405523788,0.378,3775.8,3775.2,0.75219476]
[1641405523990,0.378,3775.8,3775.2,0.70219476]
[1641405524189,0.66226,3775.7,3775.1,0.00568423]
[1641405524390,0.378,3775.6,3775.1,0.00568423]
[1641405524635,0.378,3775.6,3775.3,0.66226]
[1641405525136,0.378,3775.6,3775.4,0.00397896]
[1641405525936,0.378,3775.6,3775.5,0.71586755]
[1641405526337,0.378,3775.6,3775.5,0.71927809]
[1641405527140,0.378,3775.6,3775.5,0.00341054]
[1641405527537,0.378,3775.6,3775.3,0.66226]
[1641405527538,0.378,3775.6,3775.4,0.00397896]
[1641405528390,0.378,3775.6,3775.5,1.50826467]
[1641405528786,0.378,3775.6,3775.5,1.51167521]
[1641405529585,0.00113685,3776.3,3775.5,1.51167521]
[1641405529586,0.37913685,3776.3,3775.5,1.51167521]
[1641405529786,0.37913685,3776.3,3775.7,0.66211]
[1641405530185,0.37913685,3776.3,3775.8,0.00170527]
[1641405530897,2.64185006,3776.2,3775.4,0.0129582]
[1641405531092,2.64185006,3776.2,3775.9,0.00106752]
[1641405531093,0.378,3776.1,3775.9,0.00106752]
[1641405531294,0.38027369,3776.1,3775.9,0.00106752]
[1641405531492,7.15170527,3776.0,3775.9,0.00106752]
[1641405531692,7.52970527,3776.0,3775.9,0.00106752]
[1641405531893,0.37970527,3776.0,3775.9,0.86961123]
[1641405534850,0.00170527,3776.0,3775.9,0.86961123]
[1641405535051,0.31177327,3776.7,3776.0,5.25]
[1641405535252,0.31177327,3776.7,3776.2,0.66196]
[1641405535451,0.00341054,3776.6,3776.2,0.66196]
[1641405535889,0.31177327,3776.7,3776.5,1.03169902]
[1641405536093,0.31177327,3776.7,3776.6,0.71250763]
[1641405537091,0.31177327,3776.7,3776.4,0.66202]
[1641405537288,0.31177327,3776.7,3776.1,1.32392]
[1641405537488,0.00341054,3776.6,3775.9,0.00106752]
[1641405537690,0.378,3776.5,3775.9,0.00106752]
[1641405537887,0.38084212,3776.5,3776.2,0.66206]
[1641405538089,0.00227369,3776.4,3776.2,0.66206]
[1641405538388,0.00170527,3776.3,3776.2,0.66206]
[1641405538593,0.00170527,3776.3,3776.2,1.52017003]
[1641405538788,0.00170527,3776.3,3776.2,2.22479434]
[1641405538989,0.00170527,3776.3,3776.2,0.70462431]
[1641405542147,0.00170527,3776.3,3776.2,0.7056684]
[1641405544289,0.37970527,3776.3,3776.2,0.7056684]
[1641405545587,3.38298589,3776.3,3776.2,0.7056684]
[1641405548147,3.38298589,3776.3,3776.2,0.6556684]
[1641405551495,3.38145175,3776.3,3776.2,3.6556684]
[1641405551699,3.38145175,3776.3,3776.2,0.6556684]
[1641405553397,3.38145175,3776.3,3776.2,3.20999633]
[1641405553799,3.38145175,3776.3,3776.2,0.6556684]
[1641405554537,0.37817113,3776.3,3776.2,0.6556684]
[1641405554738,0.37817113,3776.3,3776.2,3.18798149]
[1641405555144,0.37817113,3776.3,3776.2,0.6556684]
[1641405555539,0.37817113,3776.3,3776.2,3.20426381]
[1641405556348,0.00017113,3776.3,3776.2,11.38246788]
[1641405556951,0.999,3777.2,3776.6,0.66178]
[1641405557148,0.999,3777.2,3776.7,0.74605057]
[1641405557348,0.00454739,3777.1,3776.8,1.46352279]
[1641405557551,3.00721677,3777.1,3776.8,1.46352279]
[1641405557750,0.00397896,3777.0,3776.8,2.78703779]
[1641405558147,0.00341054,3776.9,3776.8,2.78703779]
[1641405558387,3.00266938,3777.1,3776.9,7.15]
[1641405558585,2.39786938,3777.1,3777.0,10.67252428]
[1641405558887,5.70113685,3777.1,3777.0,0.66173]
[1641405559090,5.70113685,3777.1,3776.8,1.32353]
[1641405559292,5.70113685,3777.1,3776.9,0.66172]
[1641405559293,0.378,3777.0,3776.9,0.66172]
[1641405559687,0.378,3777.0,3776.4,4.92755314]
[1641405559987,1.02720587,3776.5,3776.2,0.00104409]
[1641405560192,2.94842587,3776.5,3776.2,0.00104409]
[1641405560390,3.24842587,3776.5,3776.3,0.00341054]
[1641405560688,3.24842587,3776.5,3776.2,0.00104409]
[1641405560689,13.91513,3776.4,3776.2,0.00104409]
[1641405560891,15.3050124,3776.3,3776.2,0.00104409]
[1641405561191,14.03960146,3776.3,3776.2,0.00104409]
[1641405561389,29.45960146,3776.3,3775.4,2.8701078]
[1641405561593,1.32475,3776.0,3775.4,0.22522582]
[1641405561790,0.66239,3775.7,3775.5,0.00454739]
[1641405562050,8.19041,3775.6,3775.5,0.00454739]
[1641405562247,8.19041,3775.6,3775.0,0.001]
[1641405562248,12.91541,3775.6,3775.1,0.00682108]
[1641405562448,4.725,3775.2,3775.1,0.00682108]
[1641405562650,5.103,3775.2,3775.1,0.00682108]
[1641405562847,10.272,3775.2,3775.1,0.00682108]
[1641405563048,11.5968218,3775.2,3775.1,0.00787776]
[1641405563249,12.8968218,3775.2,3775.1,0.00787776]
[1641405564049,13.5592318,3775.2,3775.1,0.00787776]
[1641405565050,14.4657318,3775.2,3775.1,0.00787776]
[1641405565451,7.15092224,3775.1,3773.7,3.0555202]
[1641405565653,0.66257,3774.0,3773.7,3.0055202]
[1641405565900,0.378,3773.9,3773.8,0.00738951]
[1641405567305,6.55,3773.8,3773.7,2.96290971]
[1641405567499,0.378,3773.8,3773.7,2.96290971]
[1641405575301,0.38832645,3773.8,3773.7,2.96290971]
[1641405577149,0.01032645,3773.8,3773.7,2.96290971]
[1641405578854,3.028,3773.8,3773.7,2.96290971]
[1641405579354,0.378,3773.8,3773.7,2.96290971]
[1641405579753,4.20810067,3773.8,3773.7,2.96290971]
[1641405579954,4.20810067,3773.8,3773.7,2.71290971]
[1641405579955,11.35810067,3773.8,3773.7,2.71290971]
[1641405580157,4.20810067,3773.8,3773.7,2.71290971]
[1641405580358,5.20810067,3773.8,3773.7,2.71290971]
[1641405580906,4.38285978,3773.8,3773.7,2.71290971]
[1641405581105,3.38285978,3773.8,3773.7,2.71290971]
[1641405582306,4.2075073,3773.8,3773.7,2.71290971]
[1641405583306,5.2075073,3773.8,3773.7,2.71290971]
[1641405583507,4.2075073,3773.8,3773.7,2.71290971]
[1641405583908,4.2075073,3773.8,3773.2,0.01205712]
[1641405583909,9.82454314,3773.7,3773.2,0.01205712]
[1641405584108,1.04065,3773.6,3773.2,0.01205712]
[1641405584308,7.35772062,3773.5,3773.3,0.00284211]
[1641405584547,0.378,3773.4,3773.3,0.00284211]
[1641405584746,0.66265,3773.6,3773.3,0.00284211]
[1641405585145,2.67454314,3773.7,3773.3,0.00284211]
[1641405585551,3.00485978,3773.4,3773.3,0.00284211]
[1641405585749,3.38285978,3773.4,3773.3,0.00284211]
[1641405586749,0.378,3773.4,3773.3,0.00284211]
[1641405586950,0.378,3773.4,3772.4,1.1795962]
[1641405586951,3.5,3773.3,3772.4,1.1795962]
[1641405587149,0.378,3773.3,3772.4,1.1795962]
[1641405587349,0.378,3773.3,3773.1,0.90465943]
[1641405588157,0.378,3773.3,3772.8,1.00710126]
[1641405588389,0.378,3773.3,3772.7,0.66263]
[1641405588390,0.378,3773.3,3772.7,0.02029126]
[1641405588593,0.378,3773.3,3772.9,0.0022737]
[1641405588801,0.378,3773.3,3772.8,0.72515355]
[1641405588997,1.0,3773.6,3772.9,0.6648637]
[1641405589198,3.01072062,3773.5,3772.9,0.0022737]
[1641405589399,0.37913684,3773.5,3773.0,0.00170527]
[1641405589599,6.3,3773.4,3771.9,5.10131]
[1641405589799,6.3,3773.4,3771.9,1.98781]
[1641405589800,3.01072062,3773.3,3771.9,1.98781]
[1641405589999,1.32562,3773.1,3771.6,1.01587705]
[1641405590305,0.01203012,3772.8,3771.7,0.00227369]
[1641405590499,0.84079413,3772.3,3771.7,0.00227369]
[1641405590702,0.378,3772.2,3771.5,0.00341054]
[1641405591301,0.8644518,3772.0,3771.5,0.00341054]
[1641405591499,1.2424518,3772.0,3771.5,0.00341054]
[1641405591698,1.2424518,3772.0,3771.1,0.00568423]
[1641405592351,0.66296,3771.8,3771.1,0.00568423]
[1641405592550,0.228,3771.7,3771.0,0.66296]
[1641405592748,0.228,3771.7,3770.9,0.00682108]
[1641405592950,0.228,3771.7,3771.1,0.00568423]
[1641405593152,0.228,3771.7,3770.9,0.89486014]
[1641405593153,0.228,3771.7,3770.9,0.30682108]
[1641405593355,0.228,3771.7,3771.0,0.00625265]
[1641405593553,0.228,3771.7,3771.0,1.33202265]
[1641405593952,0.228,3771.7,3771.1,0.00568423]
[1641405594354,0.78836034,3771.3,3771.1,0.00568423]
[1641405594555,0.78836034,3771.3,3771.2,0.00137834]
[1641405595058,0.228,3771.7,3771.2,0.00649415]
[1641405595458,0.228,3771.7,3771.3,0.00454738]
[1641405596389,0.228,3771.7,3771.3,0.66746738]
[1641405596789,0.228,3771.7,3771.4,0.00397896]
[1641405597191,0.228,3771.7,3771.3,0.00454738]
[1641405597591,0.89097,3771.7,3771.3,0.00454738]
[1641405598400,1.89097,3771.7,3771.3,0.00454738]
[1641405598994,0.89097,3771.7,3771.3,0.00454738]
[1641405599394,1.89097,3771.7,3771.3,0.00454738]
[1641405599643,0.228,3771.7,3771.3,0.00454738]
[1641405599845,0.228,3771.7,3771.4,0.6629]
[1641405600056,3.3258,3772.4,3771.4,0.6629]
[1641405600244,5.10793285,3772.7,3771.4,1.03720054]
[1641405600245,3.78221055,3772.7,3771.4,1.03720054]
[1641405600746,1.3264419,3772.6,3771.4,1.03720054]
[1641405600951,0.74417162,3772.2,3771.7,0.75094746]
[1641405601148,0.74417162,3772.2,3771.9,0.66282]
[1641405601549,0.74417162,3772.2,3771.3,1.32571]
[1641405601950,0.6628931,3772.1,3771.3,1.32571]
[1641405602152,2.98087932,3772.0,3771.3,1.32571]
[1641405602358,2.98087932,3772.0,3771.2,0.00137834]
[1641405602551,0.86352756,3771.3,3771.2,0.00137834]
[1641405603152,1.24152756,3771.3,3771.2,0.00137834]
[1641405603608,2.24152756,3771.3,3771.2,0.00137834]
[1641405603799,1.24152756,3771.3,3771.2,0.00137834]
[1641405605002,4.24740379,3771.3,3771.2,0.00137834]
[1641405605402,5.24740379,3771.3,3771.2,0.00137834]
[1641405605807,8.8667715,3771.3,3771.2,0.00137834]
[1641405606009,9.1667715,3771.3,3771.2,0.00137834]
[1641405606311,10.22674619,3771.3,3771.2,0.00137834]
[1641405606708,7.62386687,3771.3,3771.2,0.00137834]
[1641405606907,6.35341839,3771.3,3771.2,0.00137834]
[1641405607139,0.66314,3771.0,3770.5,0.3234319]
[1641405607343,7.528,3770.9,3770.8,0.17413243]
[1641405607542,8.828,3770.9,3770.8,0.17413243]
[1641405607841,8.828,3770.9,3770.5,0.3234319]
[1641405608040,1.3,3770.8,3770.5,0.3234319]
[1641405608243,1.3,3770.8,3770.5,0.16001423]
[1641405608244,2.08598161,3770.7,3770.5,0.16001423]
[1641405608440,2.03598161,3770.7,3770.0,0.001]
[1641405608641,2.03598161,3770.7,3769.3,1.32645]
[1641405608642,11.875,3770.6,3769.3,1.32645]
[1641405608848,2.98087932,3770.5,3770.1,0.00284211]
[1641405609041,2.60287932,3770.4,3770.1,0.00284211]
[1641405609240,0.66339,3770.0,3769.3,0.0073895]
[1641405609542,0.81563185,3769.5,3769.3,0.0073895]
[1641405609741,8.19143,3769.4,3769.3,0.0073895]
[1641405610345,7.15,3769.3,3767.9,0.5]
[1641405610543,7.15,3769.3,3766.7,3.2116]
[1641405610544,0.378,3769.2,3766.7,3.2116]
[1641405610801,0.66356,3768.4,3768.0,0.00738951]
[1641405610999,0.66356,3768.4,3767.9,0.57092951]
[1641405611000,6.15,3768.4,3767.9,0.57092951]
[1641405611206,0.378,3768.5,3767.9,0.52092951]
[1641405611404,0.27970527,3768.5,3767.9,5.55]
[1641405611599,0.27970527,3768.5,3767.8,2.17675835]
[1641405611600,0.6635403,3768.3,3767.8,1.32699]
[1641405611800,0.6635403,3768.3,3768.0,0.00170527]
[1641405611999,0.6635403,3768.3,3767.9,0.00227369]
[1641405612198,3.67110092,3768.3,3767.9,0.00227369]
[1641405612402,4.33467092,3768.3,3767.9,0.00227369]
[1641405612601,5.15338915,3768.3,3767.9,0.00227369]
[1641405612800,3.00756062,3768.3,3767.9,0.00227369]
[1641405613002,3.00756062,3768.3,3767.8,0.66348]
[1641405613504,3.00756062,3768.2,3767.9,0.00227369]
[1641405613700,3.00756062,3768.2,3767.9,1.32925369]
[1641405614102,3.00756062,3768.2,3768.0,0.00170527]
[1641405614401,3.00756062,3768.4,3768.0,0.00170527]
[1641405614647,0.35544285,3768.1,3767.9,1.27868527]
[1641405614852,3.00760347,3768.1,3767.9,1.27868527]
[1641405615049,3.00760347,3768.1,3767.9,1.22868527]
[1641405615248,3.00760347,3768.1,3768.0,6.62250055]
[1641405615448,1.24953929,3768.8,3768.1,6.95]
[1641405615647,1.24953929,3768.8,3768.3,1.32671]
[1641405615852,0.0022737,3768.7,3768.4,1.43370033]
[1641405616252,0.00170527,3768.6,3768.4,1.43370033]
[1641405616653,0.00113685,3768.5,3768.4,5.48370033]
[1641405616852,0.00113685,3768.5,3768.4,1.43370033]
[1641405617054,0.00113685,3768.5,3768.4,0.66336]
[1641405617456,0.00113685,3768.5,3768.3,1.32671]
[1641405617654,0.00113685,3768.5,3768.4,2.66714982]
[1641405617655,7.15113685,3768.5,3768.4,2.66714982]
[1641405617856,7.15113685,3768.5,3767.9,1.32701]
[1641405617857,25.52277283,3768.5,3767.9,1.32701]
[1641405618056,0.92989845,3767.8,3767.5,0.007]
[1641405618301,0.378,3767.7,3767.5,0.007]
[1641405618499,1.0416796,3767.7,3767.6,0.00397896]
[1641405618705,1.05370164,3767.7,3767.6,0.00397896]
[1641405619003,1.0416796,3767.7,3767.6,0.00397896]
[1641405619201,0.378,3767.7,3767.6,0.00397896]
[1641405619700,1.17589665,3767.7,3767.6,0.00397896]
[1641405619899,0.378,3767.7,3767.6,0.00397896]
[1641405620906,6.21143678,3767.7,3767.6,0.00397896]
[1641405621106,5.378,3767.7,3767.6,0.00397896]
[1641405621514,5.0,3767.7,3767.6,0.00397896]
[1641405621713,0.00113685,3768.5,3767.7,7.15]
[1641405621714,0.37913685,3768.5,3767.7,7.15]
[1641405621905,0.00113685,3768.5,3767.7,7.15]
[1641405622150,0.00113685,3768.5,3768.0,0.75460142]
[1641405622549,0.00113685,3768.5,3768.4,0.83306065]
[1641405622949,0.00113685,3768.5,3768.4,1.43786065]
[1641405623552,0.00113685,3768.5,3768.4,8.58786065]
[1641405624159,0.00113685,3768.5,3768.4,8.88786065]
[1641405624353,1.24953929,3769.7,3768.5,7.15]
[1641405624553,1.24953929,3769.7,3768.7,1.9894]
[1641405624755,1.24953929,3769.7,3768.8,0.3]
[1641405624756,0.00625266,3769.6,3768.8,0.3]
[1641405624957,0.00625266,3769.6,3769.2,1.32631]
[1641405625155,0.00568423,3769.5,3769.4,4.61568358]
[1641405625353,0.00568423,3769.5,3769.4,0.71568358]
[1641405625556,0.11839416,3770.0,3769.4,0.71568358]
[1641405625998,0.0022737,3769.9,3769.4,0.71568358]
[1641405626297,0.02066786,3770.0,3769.5,2.8]
[1641405626497,0.02066786,3770.0,3769.4,0.71568358]
[1641405626700,0.02066786,3770.0,3769.6,0.00170527]
[1641405626898,0.02066786,3770.0,3769.5,0.0022737]
[1641405627101,0.02066786,3770.0,3769.9,0.95526349]
[1641405627298,0.08711512,3770.3,3769.9,0.95526349]
[1641405627697,1.25124456,3770.2,3769.9,0.95526349]
[1641405628099,0.00113685,3770.1,3770.0,0.88881603]
[1641405628898,0.08711512,3770.3,3770.0,0.88881603]
[1641405630650,0.08711512,3770.3,3770.0,1.90755558]
[1641405630855,0.08711512,3770.3,3770.0,2.20755558]
[1641405631056,0.08711512,3770.3,3769.6,0.04793572]
[1641405631352,0.08711512,3770.3,3769.6,0.03525787]
[1641405631551,0.08711512,3770.3,3769.7,0.0022737]
[1641405631751,1.2412973,3770.9,3769.8,3.56307]
[1641405631955,1.2412973,3770.3,3769.8,0.66307]
[1641405632152,1.24243414,3770.3,3770.0,0.84838509]
[1641405632451,1.24243414,3770.3,3769.9,0.00113685]
[1641405632851,0.00113684,3770.3,3769.8,0.00170527]
[1641405633698,0.37913684,3770.3,3770.0,0.76521863]
[1641405633901,0.37913684,3770.3,3769.8,0.00170527]
[1641405634800,0.37913684,3770.3,3769.8,0.03698183]
[1641405635199,0.37913684,3770.3,3769.9,0.00113685]
[1641405636210,3.671053,3770.2,3769.9,0.00113685]
[1641405636508,0.378,3770.1,3769.9,0.00113685]
[1641405636708,7.8133,3770.0,3769.9,0.00113685]
[1641405637045,7.528,3770.0,3769.9,0.00113685]
[1641405637445,10.5358073,3770.0,3769.9,0.00113685]
[1641405638149,3.3858073,3770.0,3769.9,0.00113685]
[1641405638351,4.3168073,3770.0,3769.9,0.00113685]
[1641405638651,7.15,3769.8,3768.3,0.75637057]
[1641405638850,0.378,3769.7,3768.3,0.75637057]
[1641405639050,7.15,3769.2,3767.7,3.89882686]
[1641405639252,0.82275522,3768.8,3767.7,3.61051179]
[1641405639451,1.20075522,3768.8,3767.8,0.00341054]
[1641405639651,0.00170527,3768.7,3767.8,0.00341054]